bitfinex/quotes_SOLUSD_20220216
["timestamp","ask_amount","ask_price","bid_price","bid_amount"]
[1645052555787,17.18542404,102.51,102.48,0.51724984]
[1645052556189,14.6443,102.51,102.48,0.51724984]
[1645052557191,14.6443,102.51,102.49,1.45638386]
[1645052558196,14.6443,102.51,102.49,1.59076554]
[1645052560217,0.25,102.5,102.49,1.59076554]
[1645052561824,14.8898,102.5,102.49,1.59076554]
[1645052563021,14.8898,102.5,102.49,0.13438168]
[1645052570330,17.43092404,102.5,102.49,0.13438168]
[1645052570526,18.81130741,102.5,102.49,0.13438168]
[1645052570730,23.68930741,102.5,102.49,0.13438168]
[1645052570929,16.27018337,102.5,102.49,0.13438168]
[1645052571129,16.27018337,102.5,102.48,0.26876336]
[1645052572131,16.27018337,102.5,102.48,0.53752672]
[1645052572328,21.14818337,102.5,102.48,0.53752672]
[1645052572631,21.14818337,102.5,102.47,0.58779528]
[1645052573331,21.14818337,102.5,102.46,0.0675381]
[1645052573533,16.27018337,102.5,102.46,0.0675381]
[1645052574532,18.81130741,102.5,102.46,0.0675381]
[1645052574732,1.38038337,102.49,102.46,0.0675381]
[1645052574934,14.6471,102.48,102.46,0.0675381]
[1645052577435,14.6471,102.48,102.45,0.24421808]
[1645052582545,14.6471,102.48,102.45,0.23037598]
[1645052585854,19.5251,102.48,102.45,0.23037598]
[1645052586050,22.06622404,102.48,102.45,0.23037598]
[1645052586746,20.11622404,102.48,102.45,0.23037598]
[1645052586948,21.49660741,102.48,102.45,0.23037598]
[1645052587446,20.11622404,102.48,102.45,0.23037598]
[1645052587650,21.49660741,102.48,102.45,0.23037598]
[1645052588049,16.61860741,102.48,102.45,0.23037598]
[1645052589151,16.61860741,102.48,102.4,24.67530226]
[1645052589349,14.6512,102.46,102.45,0.46075196]
[1645052589749,14.6512,102.46,102.45,0.92150392]
[1645052590351,14.6512,102.46,102.41,0.3345267]
[1645052593451,18.57270741,102.46,102.41,0.3345267]
[1645052594356,14.9011,102.45,102.41,0.3345267]
[1645052600590,14.9011,102.45,102.43,0.05110624]
[1645052601186,14.9011,102.45,102.43,0.10221248]
[1645052601394,14.6511,102.45,102.43,0.10221248]
[1645052601586,14.6511,102.45,102.41,0.3345267]
[1645052601788,2.54112404,102.44,102.43,0.20442496]
[1645052602187,17.19232404,102.44,102.43,0.40884992]
[1645052602888,14.9012,102.44,102.41,0.3345267]
[1645052606896,14.6512,102.44,102.41,0.3345267]
[1645052608396,0.25,102.43,102.41,0.3345267]
[1645052608595,14.9008,102.43,102.41,0.3345267]
[1645052616011,14.9008,102.43,102.42,0.28580688]
[1645052616609,14.9008,102.43,102.42,0.57161376]
[1645052617111,14.9008,102.43,102.41,0.3345267]
[1645052617310,16.28118337,102.43,102.41,0.3345267]
[1645052617812,14.9008,102.43,102.41,0.3345267]
[1645052620316,14.9008,102.43,102.42,2.67328993]
[1645052620713,14.9008,102.43,102.41,0.3345267]
[1645052621817,16.28118337,102.43,102.41,0.3345267]
[1645052624114,16.28118337,102.43,102.4,1.07000226]
[1645052625116,14.9008,102.43,102.4,1.07000226]
[1645052625816,14.6508,102.43,102.4,1.07000226]
[1645052626422,19.5328,102.43,102.4,1.07000226]
[1645052627222,0.25,102.42,102.4,1.07000226]
[1645052629019,14.9011,102.42,102.4,1.07000226]
[1645052631025,14.6511,102.42,102.4,1.07000226]
[1645052633853,14.6511,102.42,102.41,0.13340777]
[1645052634251,14.9011,102.42,102.41,0.13340777]
[1645052634651,14.9011,102.42,102.4,1.07000226]
[1645052635855,14.9011,102.42,102.41,0.13340777]
[1645052636053,14.9011,102.42,102.4,1.07000226]
[1645052637856,14.9011,102.42,102.41,0.13340777]
[1645052638057,14.9011,102.42,102.4,1.07000226]
[1645052640358,14.6511,102.42,102.4,1.07000226]
[1645052640562,16.02988337,102.44,102.4,1.07000226]
[1645052640759,14.6495,102.44,102.4,1.07000226]
[1645052641965,4.881,102.43,102.4,1.07000226]
[1645052642166,4.881,102.43,102.41,0.12445842]
[1645052642365,14.6495,102.44,102.41,0.12445842]
[1645052649184,19.5279,102.45,102.41,0.12445842]
[1645052649485,6.26138337,102.46,102.41,0.12445842]
[1645052649685,21.17338337,102.47,102.41,0.12445842]
[1645052649884,16.29238337,102.47,102.41,0.12445842]
[1645052650084,16.29238337,102.47,102.41,0.37445842]
[1645052650283,16.29238337,102.47,102.42,97.73]
[1645052651082,16.29238337,102.47,102.41,23.5385]
[1645052651383,16.29238337,102.47,102.41,121.2685]
[1645052652285,0.25,102.46,102.41,121.2685]
[1645052653107,16.29238337,102.47,102.41,121.2685]
[1645052653309,4.88,102.46,102.41,121.2685]
[1645052654409,19.5258,102.46,102.41,23.5385]
[1645052654813,14.6458,102.46,102.41,121.2685]
[1645052655109,14.6458,102.46,102.41,23.5385]
[1645052655310,0.25,102.45,102.41,23.5385]
[1645052655512,14.6458,102.46,102.42,97.73]
[1645052656712,4.88,102.45,102.42,97.73]
[1645052656913,14.6458,102.46,102.42,97.73]
[1645052660316,19.5258,102.46,102.42,97.73]
[1645052660816,14.6458,102.46,102.42,97.73]
[1645052667825,19.5258,102.46,102.42,97.73]
[1645052668527,16.02298337,102.48,102.43,0.25]
[1645052668730,1.38038337,102.49,102.44,97.73]
[1645052668925,1.38038337,102.49,102.45,122.2989]
[1645052669127,1.38038337,102.5,102.45,122.2989]
[1645052669526,1.38038337,102.51,102.45,122.2989]
[1645052669927,1.38038337,102.51,102.45,124.53610082]
[1645052670130,1.38038337,102.51,102.45,138.52610082]
[1645052670329,1.38038337,102.51,102.45,187.24610082]
[1645052670531,1.38038337,102.52,102.46,4.878]
[1645052670728,1.38038337,102.52,102.45,187.24610082]
[1645052670932,1.38038337,102.52,102.46,4.878]
[1645052671128,1.38038337,102.52,102.45,187.24610082]
[1645052671355,1.38038337,102.52,102.46,4.878]
[1645052671530,1.38038337,102.52,102.48,97.73]
[1645052671930,1.38038337,102.53,102.48,97.73]
[1645052672733,1.38038337,102.53,102.48,111.72]
[1645052673332,1.38038337,102.54,102.48,111.72]
[1645052673933,4.877,102.53,102.48,111.72]
[1645052675134,1.38038337,102.54,102.48,111.72]
[1645052675437,1.38038337,102.55,102.48,111.72]
[1645052675636,6.25738337,102.55,102.48,111.72]
[1645052675834,1.38038337,102.55,102.48,116.597]
[1645052676536,1.38038337,102.56,102.48,125.22820082]
[1645052676735,1.38038337,102.57,102.48,125.22820082]
[1645052677736,1.38038337,102.57,102.48,118.83420082]
[1645052678236,1.38038337,102.58,102.48,365.93261202]
[1645052678438,1.38038337,102.59,102.52,97.73]
[1645052678639,1.38038337,102.59,102.54,97.73]
[1645052679046,7.63475205,102.62,102.54,97.73]
[1645052679047,1.38038337,102.6,102.54,97.73]
[1645052679250,1.63038337,102.61,102.54,97.73]
[1645052679449,1.63038337,102.61,102.54,102.604]
[1645052679651,1.63038337,102.61,102.54,116.594]
[1645052680652,4.874,102.6,102.54,111.72]
[1645052681051,1.63038337,102.61,102.54,111.72]
[1645052681252,1.63038337,102.61,102.54,116.594]
[1645052682353,4.874,102.6,102.54,111.72]
[1645052683655,0.25,102.61,102.54,116.594]
[1645052683857,5.124,102.61,102.54,111.72]
[1645052684355,19.7481,102.61,102.54,111.72]
[1645052684557,21.12848337,102.61,102.54,111.72]
[1645052685565,19.7481,102.61,102.54,111.72]
[1645052685759,14.8741,102.61,102.55,0.25]
[1645052686872,14.6241,102.61,102.55,0.25]
[1645052687072,4.874,102.6,102.55,0.25]
[1645052687371,14.6241,102.61,102.55,0.25]
[1645052687574,14.6241,102.61,102.54,97.73]
[1645052687778,22.04172404,102.6,102.52,97.73]
[1645052687975,22.04172404,102.6,102.5,24.7808]
[1645052688179,23.0128,102.59,102.5,24.7808]
[1645052688376,4.875,102.58,102.5,24.7808]
[1645052688776,4.875,102.58,102.51,0.25]
[1645052688983,26.93430741,102.59,102.51,0.25]
[1645052689876,14.6297,102.57,102.51,0.25]
[1645052690079,14.6297,102.57,102.48,126.577]
[1645052690377,4.876,102.56,102.48,97.73]
[1645052690577,23.1107,102.57,102.48,102.606]
[1645052690778,4.876,102.56,102.48,102.606]
[1645052691378,14.6331,102.55,102.48,102.606]
[1645052691578,14.6331,102.55,102.49,0.25]
[1645052692883,14.6331,102.55,102.48,97.73]
[1645052693088,4.877,102.54,102.48,97.73]
[1645052693384,19.5113,102.54,102.48,97.73]
[1645052693583,14.6343,102.54,102.48,97.73]
[1645052700293,19.5113,102.54,102.49,0.25]
[1645052700898,19.5113,102.54,102.46,111.72]
[1645052701093,20.89168337,102.54,102.45,97.73]
[1645052701393,1.38038337,102.53,102.44,66.5466]
[1645052701601,14.639,102.51,102.44,61.6696]
[1645052702598,14.639,102.51,102.44,159.3996]
[1645052702800,19.517,102.51,102.44,159.3996]
[1645052703917,19.517,102.51,102.45,0.25]
[1645052705535,14.639,102.51,102.45,0.25]
[1645052706239,14.8906,102.5,102.45,0.25]
[1645052712842,14.8906,102.5,102.44,97.73]
[1645052714342,14.8906,102.5,102.45,0.25]
[1645052715345,14.8906,102.5,102.44,103.73]
[1645052715747,14.8906,102.5,102.44,97.73]
[1645052716389,14.8906,102.5,102.45,0.25]
[1645052718450,38.96878337,102.52,102.45,0.25]
[1645052718650,38.96878337,102.52,102.46,97.73]
[1645052718651,1.38038337,102.51,102.46,97.73]
[1645052718856,38.96878337,102.52,102.46,97.73]
[1645052719051,22.9503,102.52,102.46,97.73]
[1645052723052,38.96768337,102.52,102.46,97.73]
[1645052723251,4.878,102.51,102.46,97.73]
[1645052723451,38.96768337,102.52,102.46,97.73]
[1645052724552,37.5873,102.52,102.46,97.73]
[1645052725554,38.96768337,102.52,102.46,97.73]
[1645052726659,0.25,102.51,102.46,97.73]
[1645052726853,19.7662,102.51,102.46,97.73]
[1645052727254,21.14658337,102.51,102.46,97.73]
[1645052727754,21.14658337,102.51,102.45,97.73]
[1645052730763,1.38038337,102.5,102.45,97.73]
[1645052731162,16.26858337,102.51,102.45,97.73]
[1645052731571,1.38038337,102.5,102.45,97.73]
[1645052733270,1.38038337,102.5,102.46,0.25]
[1645052733474,4.878,102.5,102.46,0.25]
[1645052734071,6.25838337,102.5,102.46,0.25]
[1645052734473,4.878,102.5,102.46,0.25]
[1645052734672,21.14658337,102.51,102.45,97.73]
[1645052735073,16.26858337,102.51,102.44,97.73]
[1645052735277,1.38038337,102.5,102.45,0.25]
[1645052737579,1.38038337,102.5,102.44,97.73]
[1645052737785,16.02018337,102.5,102.45,0.25]
[1645052737980,1.38038337,102.49,102.45,0.25]
[1645052738183,20.89818337,102.5,102.44,97.73]
[1645052742600,16.02018337,102.5,102.44,97.73]
[1645052743900,4.878,102.49,102.44,97.73]
[1645052745200,16.02018337,102.5,102.44,97.73]
[1645052746803,16.02018337,102.5,102.45,0.25]
[1645052747204,14.6398,102.5,102.45,0.25]
[1645052747406,16.02018337,102.5,102.45,0.25]
[1645052748004,16.02018337,102.5,102.44,97.73]
[1645052748205,0.25,102.49,102.44,97.73]
[1645052749710,16.02018337,102.5,102.45,0.25]
[1645052749914,1.38038337,102.5,102.45,0.25]
[1645052750112,23.7725,102.5,102.45,0.25]
[1645052751515,23.7725,102.5,102.44,97.73]
[1645052751721,0.25,102.49,102.44,97.73]
[1645052752116,1.63038337,102.49,102.44,97.73]
[1645052752317,0.25,102.49,102.44,97.73]
[1645052752519,0.25,102.49,102.43,122.116]
[1645052752716,1.63038337,102.49,102.43,122.116]
[1645052752918,1.63038337,102.49,102.43,97.73]
[1645052753415,16.27148337,102.49,102.43,97.73]
[1645052753817,21.14948337,102.49,102.43,97.73]
[1645052754422,21.14948337,102.49,102.44,0.25]
[1645052754618,19.7691,102.49,102.44,0.25]
[1645052755120,21.14948337,102.49,102.44,0.25]
[1645052755318,21.14948337,102.49,102.43,97.73]
[1645052755518,16.27148337,102.49,102.43,97.73]
[1645052756818,16.27148337,102.49,102.44,0.25]
[1645052758125,21.14948337,102.49,102.44,0.25]
[1645052760228,21.14948337,102.49,102.42,111.72]
[1645052760625,1.38038337,102.48,102.43,6.0]
[1645052761228,1.38038337,102.48,102.44,97.73]
[1645052762327,16.02278337,102.48,102.43,6.0]
[1645052762735,1.38038337,102.47,102.43,6.0]
[1645052763735,16.02438337,102.47,102.43,6.0]
[1645052763932,16.02438337,102.47,102.4,1.07000226]
[1645052764136,25.12008337,102.46,102.4,1.07000226]
[1645052765358,38.3853,102.46,102.4,1.07000226]
[1645052765555,43.2663,102.46,102.4,1.07000226]
[1645052765959,38.3853,102.46,102.4,1.07000226]
[1645052768157,39.76568337,102.46,102.4,1.07000226]
[1645052768558,38.3853,102.46,102.4,1.07000226]
[1645052769656,43.2663,102.46,102.4,1.07000226]
[1645052770859,38.3853,102.46,102.4,1.07000226]
[1645052771361,39.76568337,102.46,102.4,1.07000226]
[1645052771560,38.3853,102.46,102.4,1.07000226]
[1645052771763,38.2853,102.46,102.4,1.07000226]
[1645052772159,19.529,102.45,102.4,1.07000226]
[1645052773160,0.25,102.44,102.4,1.07000226]
[1645052775363,14.8985,102.44,102.4,1.07000226]
[1645052776069,0.25,102.44,102.4,1.07000226]
[1645052776266,23.6397,102.46,102.41,0.25]
[1645052776667,23.6397,102.46,102.4,103.68100226]
[1645052777265,23.6397,102.46,102.41,0.25]
[1645052777465,23.6397,102.46,102.4,98.80000226]
[1645052778265,23.6397,102.46,102.41,0.25]
[1645052778466,23.6397,102.46,102.4,98.80000226]
[1645052778666,23.6397,102.46,102.41,0.25]
[1645052780273,14.6451,102.47,102.41,0.25]
[1645052780470,4.88,102.48,102.41,0.25]
[1645052780673,39.35818337,102.49,102.42,97.73]
[1645052780870,1.38038337,102.49,102.42,97.73]
[1645052781069,1.38038337,102.49,102.44,97.73]
[1645052781275,1.38038337,102.5,102.44,97.73]
[1645052781470,16.02008337,102.5,102.44,97.73]
[1645052782369,20.89808337,102.5,102.44,97.73]
[1645052782870,16.02008337,102.5,102.44,97.73]
[1645052783271,0.25,102.49,102.44,97.73]
[1645052784572,0.25,102.49,102.43,23.9034]
[1645052784769,0.25,102.49,102.43,121.6334]
[1645052785370,14.8911,102.49,102.42,18.868]
[1645052785574,45.46988337,102.49,102.41,44.0327]
[1645052785773,4.88,102.48,102.41,141.7627]
[1645052786171,25.94878337,102.49,102.41,135.7627]
[1645052786671,14.6429,102.48,102.41,135.7627]
[1645052786874,19.5229,102.48,102.41,135.7627]
[1645052787071,19.5229,102.48,102.42,0.25]
[1645052788478,40.58998337,102.49,102.42,0.25]
[1645052788674,39.2096,102.49,102.42,0.25]
[1645052790473,40.58998337,102.49,102.42,0.25]
[1645052790777,39.2096,102.49,102.42,0.25]
[1645052791274,39.2096,102.49,102.42,6.25]
[1645052791475,39.2096,102.49,102.42,0.25]
[1645052791675,40.58998337,102.49,102.42,0.25]
[1645052793284,39.2096,102.49,102.42,0.25]
[1645052793481,24.5684,102.49,102.42,0.25]
[1645052794280,30.82878337,102.49,102.42,0.25]
[1645052794480,30.82878337,102.49,102.43,97.73]
[1645052794681,29.4484,102.49,102.43,97.73]
[1645052795681,24.5684,102.49,102.43,97.73]
[1645052796686,29.4464,102.49,102.43,97.73]
[1645052796885,29.1964,102.49,102.43,97.73]
[1645052797486,24.3184,102.49,102.43,97.73]
[1645052800503,24.3184,102.49,102.43,120.8852]
[1645052801803,24.3184,102.49,102.43,120.3852]
[1645052802505,40.14448337,102.5,102.43,120.3852]
[1645052802706,38.7641,102.5,102.43,120.3852]
[1645052803805,40.14448337,102.5,102.43,120.3852]
[1645052807108,4.878,102.49,102.43,120.3852]
[1645052807311,40.14448337,102.5,102.43,120.3852]
[1645052809312,0.25,102.49,102.43,120.3852]
[1645052809516,21.14988337,102.49,102.43,120.3852]
[1645052809709,44.31978337,102.49,102.43,120.3852]
[1645052810309,29.67828337,102.49,102.43,120.3852]
[1645052810711,29.67828337,102.49,102.44,0.25]
[1645052811314,23.4199,102.49,102.44,0.25]
[1645052812314,24.80028337,102.49,102.44,0.25]
[1645052813715,29.67828337,102.49,102.44,0.25]
[1645052815021,24.80028337,102.49,102.44,0.25]
[1645052820227,29.67828337,102.49,102.44,0.25]
[1645052820625,24.80028337,102.49,102.44,0.25]
[1645052821027,24.55028337,102.49,102.44,0.25]
[1645052821927,24.55028337,102.49,102.47,6.9326857]
[1645052822127,1.38038337,102.49,102.47,6.9326857]
[1645052822437,1.38038337,102.49,102.48,3.03219997]
[1645052823935,1.38038337,102.49,102.47,6.9326857]
[1645052824329,1.38038337,102.49,102.48,0.62470227]
[1645052824534,1.38038337,102.49,102.47,6.9326857]
[1645052824736,1.38038337,102.49,102.47,104.6626857]
[1645052824930,1.38038337,102.5,102.47,104.6626857]
[1645052825834,25.84198337,102.51,102.48,0.62470227]
[1645052832240,24.4616,102.51,102.48,0.62470227]
[1645052832670,1.38038337,102.52,102.48,0.62470227]
[1645052832842,6.25838337,102.52,102.48,0.62470227]
[1645052833042,1.38038337,102.51,102.48,0.62470227]
[1645052833443,1.38038337,102.52,102.48,0.62470227]
[1645052834342,24.32708337,102.53,102.48,0.62470227]
[1645052834542,29.20408337,102.53,102.48,0.62470227]
[1645052834946,27.8237,102.53,102.48,0.62470227]
[1645052835143,22.9467,102.53,102.49,97.73]
[1645052835344,1.38038337,102.54,102.49,97.73]
[1645052835544,1.38038337,102.54,102.49,99.96720082]
[1645052835845,1.38038337,102.54,102.49,97.73]
[1645052836246,1.38038337,102.55,102.49,97.73]
[1645052836843,1.38038337,102.55,102.51,97.73]
[1645052838456,1.38038337,102.56,102.51,97.73]
[1645052838651,6.25638337,102.56,102.51,97.73]
[1645052839156,1.38038337,102.56,102.51,97.73]
[1645052839351,40.27098337,102.57,102.51,97.73]
[1645052841087,6.25638337,102.56,102.51,97.73]
[1645052841277,40.27098337,102.57,102.51,97.73]
[1645052841476,1.63038337,102.56,102.51,97.73]
[1645052841674,6.50638337,102.56,102.51,97.73]
[1645052841974,1.63038337,102.56,102.55,6.9326857]
[1645052842175,6.50538337,102.56,102.55,6.9326857]
[1645052842375,5.125,102.56,102.55,6.9326857]
[1645052843176,14.8812,102.56,102.55,6.9326857]
[1645052843378,19.7562,102.56,102.55,8.57e-05]
[1645052843581,21.13658337,102.56,102.55,8.57e-05]
[1645052843785,16.26158337,102.56,102.55,8.57e-05]
[1645052844378,16.26158337,102.56,102.49,120.7164]
[1645052844777,37.7309,102.55,102.5,0.25]
[1645052844976,42.6069,102.55,102.5,0.25]
[1645052845177,37.7309,102.55,102.5,0.25]
[1645052847979,39.11128337,102.55,102.5,0.25]
[1645052848685,37.7309,102.55,102.5,0.25]
[1645052849483,39.11128337,102.55,102.5,0.25]
[1645052851887,43.98728337,102.55,102.5,0.25]
[1645052852289,42.6069,102.55,102.5,0.25]
[1645052852688,42.6069,102.55,102.54,1.3467185]
[1645052852888,39.11128337,102.55,102.54,1.3467185]
[1645052853893,43.98628337,102.55,102.54,1.3467185]
[1645052854294,43.98628337,102.55,102.47,18.866]
[1645052854493,39.11128337,102.55,102.47,41.531]
[1645052854691,1.38038337,102.54,102.48,97.73]
[1645052854892,6.25738337,102.54,102.48,97.73]
[1645052855095,20.89168337,102.54,102.48,97.73]
[1645052855294,16.01468337,102.54,102.48,97.73]
[1645052856496,20.89168337,102.54,102.48,97.73]
[1645052856894,16.01468337,102.54,102.48,97.73]
[1645052858798,0.25,102.53,102.48,97.73]
[1645052861705,1.63038337,102.53,102.48,97.73]
[1645052864705,25.29488337,102.53,102.48,97.73]
[1645052866837,25.04488337,102.53,102.48,97.73]
[1645052867040,14.6343,102.54,102.48,97.73]
[1645052867041,1.38038337,102.54,102.49,0.25]
[1645052867238,1.38038337,102.54,102.5,97.73]
[1645052867638,24.58688337,102.55,102.5,97.73]
[1645052868237,1.38038337,102.54,102.5,97.73]
[1645052869942,24.58688337,102.55,102.5,97.73]
[1645052870144,1.38038337,102.55,102.5,97.73]
[1645052874848,1.38038337,102.54,102.5,97.73]
[1645052876351,24.98488337,102.55,102.5,97.73]
[1645052877851,24.98488337,102.55,102.49,37.8362]
[1645052878053,24.98488337,102.55,102.49,135.5662]
[1645052878253,0.25,102.54,102.47,15.0658611]
[1645052878453,1.38038337,102.53,102.47,10.1888611]
[1645052878653,4.878,102.52,102.45,24.4755]
[1645052878855,6.25838337,102.52,102.45,24.4755]
[1645052879055,1.38038337,102.52,102.45,24.4755]
[1645052879453,40.52218337,102.52,102.45,24.4755]
[1645052879656,40.52218337,102.52,102.46,0.25]
[1645052883964,40.52218337,102.52,102.46,6.25]
[1645052886484,40.52218337,102.52,102.45,24.4755]
[1645052886684,14.6396,102.5,102.45,24.4755]
[1645052895300,14.6381,102.51,102.45,24.4755]
[1645052900596,16.01848337,102.51,102.45,24.4755]
[1645052903303,16.01848337,102.51,102.45,122.2055]
[1645052904906,1.38038337,102.51,102.45,122.2055]
[1645052906309,1.38038337,102.5,102.45,122.2055]
[1645052906909,1.38038337,102.5,102.46,0.25]
[1645052907110,1.38038337,102.51,102.46,0.25]
[1645052908711,25.88458337,102.52,102.46,0.25]
[1645052908913,25.88458337,102.52,102.46,103.98]
[1645052911014,25.88458337,102.52,102.46,118.6798]
[1645052911217,25.88458337,102.52,102.46,123.5578]
[1645052912441,25.88458337,102.52,102.46,118.6798]
[1645052914243,24.5042,102.52,102.46,118.6798]
[1645052919349,40.37888337,102.54,102.46,118.6798]
[1645052919548,38.9985,102.54,102.47,122.3198]
[1645052920051,40.37888337,102.54,102.47,122.3198]
[1645052920351,22.8902,102.53,102.47,122.3198]
[1645052923054,22.8902,102.53,102.48,0.25]
[1645052938693,14.6338,102.54,102.48,0.25]
[1645052938993,1.38038337,102.55,102.48,0.25]
[1645052939192,1.38038337,102.55,102.49,97.73]
[1645052939393,1.38038337,102.56,102.51,97.73]
[1645052940094,24.36518337,102.57,102.51,97.73]
[1645052940291,1.38038337,102.57,102.51,97.73]
[1645052940493,1.38038337,102.58,102.52,120.9075]
[1645052941193,1.38038337,102.57,102.52,120.9075]
[1645052942091,25.89888337,102.58,102.52,120.9075]
[1645052945794,24.5185,102.58,102.52,120.9075]
[1645052947299,6.25538337,102.59,102.53,2.22603963]
[1645052947496,1.38038337,102.59,102.54,97.73]
[1645052947697,1.38038337,102.61,102.54,136.206]
[1645052947898,1.38038337,102.62,102.54,138.43203963]
[1645052948097,1.38038337,102.62,102.54,143.30603963]
[1645052948296,24.57578337,102.63,102.54,143.30603963]
[1645052948698,1.38038337,102.62,102.54,143.30603963]
[1645052949401,1.38038337,102.62,102.56,97.73]
[1645052950099,24.57578337,102.63,102.56,97.73]
[1645052950299,24.57578337,102.63,102.56,122.4574]
[1645052953305,23.1954,102.63,102.56,122.4574]
[1645052953707,22.6954,102.63,102.56,122.4574]
[1645052954809,0.00038337,102.64,102.56,180.6874]
[1645052955010,4.13767863,102.7,102.56,180.6874]
[1645052955011,4.873,102.69,102.58,155.96]
[1645052955209,27.5054,102.71,102.6,97.73]
[1645052955509,22.6324,102.71,102.64,97.73]
[1645052955709,22.6324,102.71,102.64,111.72]
[1645052955911,22.6324,102.71,102.64,126.3277]
[1645052957709,24.4441,102.74,102.64,128.55373963]
[1645052957911,4.869,102.73,102.64,128.55373963]
[1645052958111,52.2645,102.74,102.64,128.55373963]
[1645052958822,66.8703,102.74,102.64,128.55373963]
[1645052960416,62.0013,102.74,102.64,133.42273963]
[1645052961014,47.3955,102.74,102.64,133.42273963]
[1645052961614,47.3955,102.74,102.66,112.3347]
[1645052961813,47.3955,102.74,102.66,126.3247]
[1645052962813,4.868,102.73,102.66,28.5947]
[1645052963012,4.868,102.73,102.56,45.7894]
[1645052963212,42.98760423,102.72,102.58,13.99]
[1645052963414,4.87,102.71,102.56,45.7894]
[1645052963614,45.07821769,102.71,102.57,77.091]
[1645052963812,34.34948208,102.74,102.58,97.73]
[1645052964013,4.87,102.73,102.6,97.73]
[1645052964214,14.6104,102.71,102.62,97.73]
[1645052964413,4.87,102.7,102.62,97.73]
[1645052964617,4.87,102.7,102.63,0.25]
[1645052964817,107.14018208,102.74,102.64,97.73]
[1645052964818,4.87,102.73,102.64,97.73]
[1645052966418,19.4785,102.73,102.64,97.73]
[1645052967218,14.6085,102.73,102.64,97.73]
[1645052968221,19.4775,102.73,102.64,97.73]
[1645052970525,14.6085,102.73,102.64,97.73]
[1645052977432,14.6085,102.73,102.63,97.98]
[1645052979854,24.4003,102.72,102.63,97.98]
[1645052980057,14.6105,102.71,102.63,97.98]
[1645052987465,14.6105,102.71,102.63,0.25]
[1645052989670,19.4795,102.71,102.63,0.25]
[1645052991973,22.23825205,102.71,102.63,0.25]
[1645052992172,17.36925205,102.71,102.63,0.25]
[1645052994873,14.6105,102.71,102.63,0.25]
[1645052997475,41.76745205,102.72,102.64,97.73]
[1645053000277,41.76745205,102.72,102.64,121.6291]
[1645053004579,41.76745205,102.72,102.64,136.4332]
[1645053019618,41.76745205,102.72,102.64,121.6291]
[1645053024518,39.0087,102.72,102.64,121.6291]
[1645053024716,43.8777,102.72,102.64,121.6291]
[1645053025819,24.4003,102.72,102.64,136.2363]
[1645053026019,24.4003,102.72,102.64,138.46233963]
[1645053026222,24.4003,102.72,102.64,143.33133963]
[1645053026822,24.4003,102.72,102.64,157.32133963]
[1645053027025,2.75875205,102.75,102.64,173.85120138]
[1645053027223,27.48955205,102.75,102.65,4.869]
[1645053027425,27.48955205,102.75,102.67,112.3325]
[1645053027623,24.7308,102.75,102.69,97.73]
[1645053032027,24.7308,102.75,102.68,24.5142]
[1645053032226,39.3348,102.75,102.68,24.5142]
[1645053032429,39.3348,102.75,102.65,14.6049]
[1645053032631,4.868,102.74,102.66,24.0656]
[1645053033226,4.868,102.74,102.66,121.7956]
[1645053033527,14.6072,102.73,102.66,121.7956]
[1645053034327,14.6072,102.73,102.66,24.0656]
[1645053037331,14.6072,102.73,102.66,121.7956]
[1645053037535,17.36415205,102.74,102.66,121.7956]
[1645053037733,27.48955205,102.75,102.66,124.02129854]
[1645053037933,24.7308,102.75,102.66,124.02129854]
[1645053038735,24.7308,102.75,102.66,121.7956]
[1645053039135,32.35755205,102.75,102.66,121.7956]